fUSD/lending_fUSD_20251013
["ID","MTS","AMOUNT","RATE_DAILY","PERIOD"]
[391100241,1760340316325,-120.98263798,0.00013121,2]
[391100242,1760340318194,-129.01736202,0.00013121,2]
[391100243,1760340318218,-76.83477015,0.00013121,2]
[391100244,1760340320482,-333.46587276,0.00013121,2]
[391100245,1760340326886,-428.30968944,0.00013121,2]
[391100246,1760340329229,-331.12591197,0.00013121,2]
[391100247,1760340346383,-788.66876299,0.00013121,2]
[391100248,1760340363914,-154.15556164,0.00013086,2]
[391100249,1760340364849,4253.99981187,0.00011,2]
[391100250,1760340367914,-287.28297826,0.00013086,2]
[391100251,1760340407080,-58.5614601,0.00013086,2]
[391100252,1760340407104,-109.91539849,0.00013086,2]
[391100253,1760340410163,-187.81951082,0.00013086,2]
[391100254,1760340413514,-171.33213783,0.00013086,2]
[391100255,1760340436369,-30.93295286,0.00013086,2]
[391100256,1760340436391,-180.61311178,0.00013086,2]
[391100257,1760340441195,-226.65066716,0.00013086,2]
[391100261,1760340477586,841904.60572623,0.00027397,120]
[391100262,1760340478868,-81.62859311,0.00013086,2]
[391100263,1760340478894,-210.0969119,0.00013094,2]
[391100264,1760340480792,-333.39557689,0.00013094,2]
[391100265,1760340486404,-300.0,0.00013093,2]
[391100266,1760340486427,-37.32474416,0.00013094,2]
[391100267,1760340487819,-468.31181604,0.00013094,2]
[391100268,1760340489715,-178.91768613,0.00013094,2]
[391100269,1760340493910,-245.73474416,0.00013094,2]
[391100270,1760340496713,-162.67525584,0.00013094,2]
[391100271,1760340498285,-159.37659119,0.00013094,2]
[391100272,1760340500801,-174.62095854,0.00013094,2]
[391100273,1760340502693,-156.45177446,0.00013094,2]
[391100274,1760340503714,-172.44184616,0.00013094,2]
[391100275,1760340509726,-391.04471857,0.00013094,2]
[391100276,1760340526809,-343.54822554,0.00013086,2]
[391100277,1760340529944,-216.48886291,0.00013086,2]
[391100278,1760340529967,-116.155237,0.00013094,2]
[391100279,1760340534042,-170.92434197,0.00013094,2]
[391100280,1760340536142,-196.89628975,0.00013094,2]
[391100281,1760340538788,-186.88518606,0.00013094,2]
[391100282,1760340542008,-180.72672731,0.00013094,2]
[391100283,1760340546540,-182.21264675,0.00013094,2]
[391100284,1760340549720,-183.79466019,0.00013094,2]
[391100285,1760340552841,-290.09813136,0.00013094,2]
[391100286,1760340568761,-7031.28664297,0.00013094,2]
[391100287,1760340568782,-41.59499269,0.00013121,2]
[391100288,1760340568802,-334.95846836,0.00013157,2]
[391100289,1760340568823,-250.0,0.00013167,2]
[391100290,1760340568844,-154.95529023,0.00013167,2]
[391100291,1760340568864,-161.09,0.00013188,2]
[391100292,1760340568884,-200.0,0.00013189,2]
[391100293,1760340568905,-1634.19,0.000132,2]
[391100294,1760340568929,-250.0,0.00013216,2]
[391100295,1760340568949,-300.0,0.00013247,2]
[391100296,1760340568972,-1032.42,0.00013248,2]
[391100297,1760340568993,-1500.0,0.00013281,2]
[391100298,1760340569014,-666.0,0.00013378,3]
[391100299,1760340569035,-1443.50460575,0.00013641,2]
[391100300,1760340573090,-7767.8433841,0.00013641,2]
[391100301,1760340573111,-151.0,0.00013641,2]
[391100302,1760340573136,-248.71531821,0.00013641,2]
[391100303,1760340573157,-621.78829552,0.00013641,2]
[391100304,1760340573179,-319.81594658,0.00013696,2]
[391100305,1760340573200,-502.3,0.00013699,2]
[391100306,1760340573222,-753.9842,0.00014,2]
[391100307,1760340573244,-168.0,0.00014004,2]
[391100308,1760340573264,-500.0,0.00014055,2]
[391100309,1760340573287,-1200.0,0.00014094,2]
[391100310,1760340573309,-1000.0,0.00014095,2]
[391100311,1760340573335,-300.0,0.00014129,2]
[391100312,1760340573358,-1466.55285559,0.0001413,2]
[391100313,1760340573390,-2458.68205424,0.0001413,2]
[391100314,1760340573411,-3153.86993948,0.0001413,2]
[391100315,1760340573436,-168.0,0.00014151,2]
[391100316,1760340573463,-3153.86993948,0.00014171,2]
[391100317,1760340573486,-500.0,0.00014173,2]
[391100318,1760340573508,-150.0,0.00014183,2]
[391100319,1760340573531,-322.6107,0.00014184,2]
[391100320,1760340573553,-646.65982734,0.00014184,2]
[391100321,1760340573580,-207.4,0.00014184,2]
[391100322,1760340573603,-151.0,0.00014184,2]
[391100323,1760340573629,-500.0,0.00014192,2]
[391100324,1760340573654,-402.65808236,0.00014192,2]
[391100325,1760340573679,-187.36019949,0.00014192,2]
[391100326,1760340573704,-527.62850724,0.00014192,2]
[391100327,1760340573730,-350.03992004,0.00014192,2]
[391100328,1760340573755,-500.0,0.00014192,2]
[391100329,1760340573780,-550.60263782,0.00014192,2]
[391100330,1760340573809,-500.0,0.00014192,2]
[391100331,1760340573833,-391.47994372,0.00014192,2]
[391100332,1760340573857,-178.13824879,0.00014192,2]
[391100333,1760340583824,-500.0,0.00013086,2]
[391100334,1760340583849,-321.86175121,0.00014192,2]
[391100335,1760340583873,-563.48656473,0.00014192,2]
[391100336,1760340583896,-500.0,0.00014192,2]
[391100337,1760340583918,-544.01295717,0.00014192,2]
[391100338,1760340583940,-558.09905511,0.00014192,2]
[391100339,1760340583962,-5012.53967178,0.00014193,2]
[391100340,1760340591225,-150.0,0.00014193,2]
[391100345,1760340617815,-1200.0,0.00014192,2]
[391100346,1760340617838,-300.0,0.00014192,2]
[391100347,1760340617865,-150.0,0.00014192,2]
[391100348,1760340617887,-300.0,0.00014192,2]
[391100349,1760340617910,-13050.0,0.00014193,2]
[391100350,1760340619254,-15000.0,0.00014193,2]
[391100351,1760340619583,-15000.0,0.00014193,2]
[391100352,1760340620076,-15000.0,0.00014193,2]
[391100353,1760340620411,-15000.0,0.00014193,2]
[391100354,1760340620755,-15000.0,0.00014193,2]
[391100355,1760340621116,-15000.0,0.00014193,2]
[391100356,1760340622083,-15000.0,0.00014193,2]
[391100357,1760340623068,-15000.0,0.00014193,2]
[391100358,1760340624328,-8393.97302822,0.00014193,2]
[391100359,1760340624348,-500.31247547,0.000142,2]
[391100367,1760340631894,-535.3669,0.00014211,2]
[391100374,1760340631956,-952.02347274,0.00014211,2]
[391100376,1760340632106,-1666.47956674,0.00014211,2]
[391100377,1760340632115,-349.29408298,0.0001423,2]
[391100378,1760340632125,-3153.86993948,0.00014252,2]
[391100379,1760340632136,-394.0,0.00014291,2]
[391100380,1760340632146,-3153.86993948,0.00014292,2]
[391100381,1760340632160,-3153.86993948,0.00014333,2]
[391100382,1760340632171,-394.0,0.00014347,2]
[391100383,1760340632182,-394.0,0.00014369,2]
[391100384,1760340632193,-394.0,0.00014373,2]
[391100385,1760340632204,-3153.86993948,0.00014373,2]
[391100386,1760340632214,-394.0,0.00014411,2]
[391100387,1760340632226,-3153.86993948,0.00014414,2]
[391100388,1760340632237,-1039.58204398,0.00014454,2]
[391100389,1760340632249,-803.67,0.00014454,2]
[391100390,1760340632260,-302.0,0.00014454,2]
[391100395,1760340636209,-1008.6178955,0.00014454,2]
[391100396,1760340636238,-500.0,0.00014456,2]
[391100397,1760340636260,-3153.86993948,0.00014495,2]
[391100398,1760340636282,-3153.86993948,0.00014535,2]
[391100399,1760340636303,-503.0,0.00014575,2]
[391100400,1760340636326,-3153.86993948,0.00014576,2]
[391100401,1760340636348,-1760.48198724,0.00014582,2]
[391100402,1760340636373,-394.0,0.00014597,2]
[391100403,1760340636394,-1372.29029882,0.00014616,2]
[391100404,1760340637166,-1781.57964066,0.00014616,2]
[391100405,1760340637192,-394.0,0.00014638,2]
[391100406,1760340637216,-262.376,0.00014641,2]
[391100407,1760340637240,-4129.71,0.00014641,2]
[391100408,1760340637262,-3153.86993948,0.00014657,2]
[391100409,1760340637283,-2500.0,0.00014687,2]
[391100410,1760340637305,-2778.46441986,0.00014697,2]
[391100411,1760340637485,-375.40551962,0.00014697,2]
[391100412,1760340637507,-1220.0,0.000147,2]
[391100413,1760340637528,-429.96,0.00014712,2]
[391100414,1760340637549,-301.36,0.00014712,2]
[391100415,1760340637571,-4017.87975,0.0001473,2]
[391100416,1760340637593,-295.37683297,0.00014732,2]
[391100417,1760340637616,-500.0,0.00014737,2]
[391100418,1760340637638,-3153.86993948,0.00014738,2]
[391100419,1760340637663,-394.0,0.00014744,2]
[391100420,1760340637685,-2505.6116814,0.00014754,2]
[391100421,1760340637708,-1806.53627653,0.00014778,2]
[391100422,1760340637940,-1347.33366295,0.00014778,2]
[391100423,1760340637950,-406.10327224,0.0001478,2]
[391100424,1760340637959,-206.93835108,0.0001478,2]
[391100425,1760340637969,-159.78788652,0.0001478,2]
[391100426,1760340637979,-5000.0,0.0001478,2]
[391100427,1760340637989,-155.42932307,0.0001478,2]
[391100428,1760340638000,-5235.62388768,0.0001478,2]
[391100429,1760340638010,-1780.17052568,0.00014787,2]
[391100430,1760340638026,-2145.06438409,0.00014787,2]
[391100431,1760340638038,-3153.86993948,0.00014819,2]
[391100432,1760340638047,-662.54,0.0001482,2]
[391100433,1760340638057,-1337.414,0.0001482,2]
[391100434,1760340638067,-1592.17,0.0001482,2]
[391100435,1760340638077,-605.873,0.0001482,2]
[391100436,1760340638086,-572.819,0.0001482,2]
[391100437,1760340638096,-819.0,0.0001482,2]
[391100438,1760340638106,-311.24967643,0.0001482,2]
[391100441,1760340638319,-2233.75032357,0.0001482,2]
[391100444,1760340638342,-1183.335,0.0001482,2]
[391100448,1760340638365,-901.0,0.0001482,2]
[391100451,1760340638387,-3406.0,0.0001482,2]
[391100454,1760340638409,-800.564,0.0001482,2]
[391100457,1760340638431,-2054.655,0.0001482,2]
[391100460,1760340638453,-161.09,0.00014837,2]
[391100463,1760340638475,-3153.86993948,0.00014859,2]
[391100467,1760340638496,-500.0,0.0001486,2]
[391100470,1760340638518,-500.0,0.0001486,2]
[391100473,1760340638540,-105.73573695,0.0001486,2]
[391100495,1760340640032,-394.26426305,0.0001486,2]
[391100496,1760340640042,-500.0,0.0001486,2]
[391100497,1760340640052,-1387.0,0.0001486,2]
[391100498,1760340640063,-150.0,0.0001486,2]
[391100499,1760340640073,-150.0,0.0001486,2]
[391100500,1760340640084,-150.0,0.0001486,2]
[391100501,1760340640096,-500.0,0.0001486,2]
[391100502,1760340640107,-4017.87976,0.0001487,2]
[391100503,1760340640117,-154.60888264,0.00014878,2]
[391100504,1760340640128,-454.10242282,0.00014879,2]
[391100505,1760340640140,-547.4673818,0.00014879,2]
[391100506,1760340640153,-270.67728969,0.00014879,2]
[391100507,1760340640167,-229.32271031,0.00014879,2]
[391100508,1760340640178,-304.65369518,0.00014879,2]
[391100509,1760340640190,-500.0,0.00014879,2]
[391100510,1760340640202,-500.0,0.00014879,2]
[391100511,1760340640213,-435.16651728,0.00014879,2]
[391100512,1760340640227,-60.53768861,0.00014879,2]
[391100513,1760340640236,-517.64083099,0.0001488,2]
[391100514,1760340640248,-270.35916901,0.0001488,2]
[391100515,1760340640258,-284.13926249,0.0001488,2]
[391100516,1760340640285,-15000.0,0.0001488,2]
[391100521,1760340641359,-181071.92370415,0.0001488,2]
[391100522,1760340641379,-5616.92400441,0.0001488,2]
[391100523,1760340641390,-3783.3846,0.0001488,2]
[391100524,1760340642564,-1.6e-07,0.0001488,2]
[391100525,1760340642601,-15000.0,0.0001488,2]
[391100526,1760340642642,-15000.0,0.0001488,2]
[391100527,1760340642690,-150.0,0.0001486,2]
[391100528,1760340642711,-14850.0,0.0001488,2]
[391100529,1760340642767,-15000.0,0.0001488,2]
[391100532,1760340643094,-860.4182736,0.0001488,2]
[391100533,1760340643105,-27948.79682197,0.0001488,2]
[391100534,1760340643192,-280.1281242,0.0001488,2]
[391100535,1760340643203,-2671.82373778,0.0001488,2]
[391100561,1760340646575,-6588.79009401,0.0001488,2]
[391100562,1760340646587,-210099.26579185,0.0001488,2]
[391100563,1760340646598,-5617.5,0.0001488,2]
[391100564,1760340735217,500.0,0.00012,2]
[391100565,1760340735257,500.0,0.00012,2]
[391100566,1760340735562,500.0,0.00012,2]
[391100567,1760340735631,500.0,0.00012,2]
[391100568,1760340735905,500.0,0.00012,2]
[391100569,1760340736010,500.0,0.00012,2]
[391100570,1760340736262,500.0,0.00012,2]
[391100571,1760340736370,500.0,0.00012,2]
[391100572,1760340736547,500.0,0.00012,2]
[391100573,1760340736631,500.0,0.00012,2]
[391100574,1760340736764,500.0,0.00012,2]
[391100575,1760340736961,500.0,0.00012,2]
[391100576,1760340737002,500.0,0.00012,2]
[391100577,1760340737147,500.0,0.00012,2]
[391100578,1760340738019,500.0,0.000111,2]
[391100579,1760340738393,500.0,0.000111,2]
[391100580,1760340738443,500.0,0.00012,2]
[391100581,1760340738493,500.0,0.000111,2]
[391100582,1760340738527,511.67569711,0.000111,2]
[391100583,1760340738576,500.0,0.00012,2]
[391100584,1760340738619,500.0,0.000111,2]
[391100585,1760340738663,234.32449102,0.00012,2]
[391100586,1760340738684,265.67550898,0.00012,2]
[391100587,1760340738747,500.0,0.000111,2]
[391100588,1760340738811,500.0,0.00012,2]
[391100589,1760340739225,500.0,0.000111,2]
[391100590,1760340739311,851.61005818,0.000111,2]
[391100591,1760340739592,500.0,0.000111,2]
[391100592,1760340739934,500.0,0.000111,2]
[391100593,1760340740322,10.96122487,0.000111,2]
[391100594,1760340740346,489.03877513,0.000111,2]
[391100595,1760340740688,500.0,0.000111,2]
[391100596,1760340741094,500.0,0.000111,2]
[391100597,1760340741431,178.05494272,0.000111,2]
[391100598,1760340741452,321.94505728,0.000111,2]
[391100599,1760340741820,500.0,0.000111,2]
[391100600,1760340742137,776.21525881,0.000111,2]
[391100601,1760340744438,500.0,0.00012,2]
[391100602,1760340744474,738.18906105,0.00012,2]
[391100603,1760340744796,500.0,0.00012,2]
[391100604,1760340745143,500.0,0.00012,2]
[391100605,1760340745512,500.0,0.00012,2]
[391100606,1760340745875,500.0,0.00012,2]
[391100607,1760340747169,500.0,0.00012,2]
[391100608,1760340747692,500.0,0.00012,2]
[391100609,1760340749159,500.0,0.00012,2]
[391100610,1760340750666,500.0,0.00012,2]
[391100611,1760340750837,500.0,0.00012,2]
[391100612,1760340751041,500.0,0.00012,2]
[391100613,1760340751196,500.0,0.00012,2]
[391100614,1760340751389,500.0,0.00012,2]
[391100615,1760340751562,504.78221012,0.000111,2]
[391100616,1760340752393,-159.18172378,0.00013086,2]
[391100617,1760340752505,500.0,0.00012,2]
[391100618,1760340752820,500.0,0.00012,2]
[391100619,1760340753194,52.54407045,0.000111,2]
[391100620,1760340753217,447.45592955,0.000111,2]
[391100621,1760340753299,500.0,0.00012,2]
[391100622,1760340753423,500.0,0.00012,2]
[391100623,1760340753470,500.0,0.000111,2]
[391100624,1760340753564,710.12788874,0.000111,2]
[391100625,1760340753709,500.0,0.00012,2]
[391100626,1760340753785,685.21693391,0.000111,2]
[391100627,1760340753823,500.0,0.00012,2]
[391100628,1760340754111,500.0,0.00012,2]
[391100629,1760340754208,500.0,0.000111,2]
[391100630,1760340754474,500.0,0.00012,2]
[391100631,1760340754587,500.0,0.000111,2]
[391100632,1760340754887,500.0,0.00012,2]
[391100633,1760340754983,517.7133125,0.000111,2]
[391100634,1760340755080,-227.19353177,0.00013086,2]
[391100635,1760340755235,500.0,0.00012,2]
[391100636,1760340755545,500.0,0.000111,2]
[391100637,1760340755636,500.0,0.00012,2]
[391100638,1760340755950,500.0,0.000111,2]
[391100639,1760340756000,500.0,0.00012,2]
[391100640,1760340756351,500.0,0.000111,2]
[391100641,1760340756698,500.0,0.000111,2]
[391100642,1760340756734,500.0,0.000111,2]
[391100643,1760340757423,500.0,0.000111,2]
[391100644,1760340757460,500.0,0.000111,2]
[391100645,1760340757582,500.0,0.000111,2]
[391100646,1760340757622,832.7044081,0.000111,2]
[391100647,1760340757755,500.0,0.000111,2]
[391100648,1760340758134,732.0,0.000111,2]
[391100649,1760340758519,-113.62474445,0.00013086,2]
[391100650,1760341061276,5000.0,0.000161,30]
[391100651,1760341722800,1128.0,0.000125,6]
[391100663,1760341832111,-500.0,0.00013086,2]
[391100664,1760341832120,-544.05,0.00013718,2]
[391100665,1760341832130,-1373.10403823,0.00013774,2]
[391100666,1760341832164,-122.44596177,0.00013774,2]
[391100667,1760341832173,-2366.18,0.00013789,2]
[391100668,1760341832183,-1055.57,0.00013805,2]
[391100669,1760341832192,-1000.0,0.00013935,2]
[391100670,1760341832202,-1200.0,0.00013991,2]
[391100671,1760341832213,-151.0,0.00013992,2]
[391100672,1760341832222,-621.78829552,0.00013992,2]
[391100673,1760341832232,-248.71531821,0.00013992,2]
[391100674,1760341832242,-300.0,0.00013999,2]
[391100675,1760341832252,-10447.37928,0.00014,2]
[391100676,1760341832261,-970.1478,0.00014093,2]
[391100677,1760341832270,-2000.0,0.00014093,2]
[391100678,1760341832279,-201.58,0.00014147,2]
[391100679,1760341832289,-166.66,0.00014196,2]
[391100680,1760341832298,-378.9,0.00014346,2]
[391100681,1760341832308,-150.0,0.00014394,2]
[391100682,1760341832317,-250.0,0.00014395,2]
[391100683,1760341832326,-1145.92168822,0.00014395,2]
[391100684,1760341832337,-195.0,0.00014395,2]
[391100685,1760341832347,-1919.99957716,0.00014395,2]
[391100686,1760341832357,-328.33185991,0.00014395,2]
[391100687,1760341832367,-195.0,0.00014395,2]
[391100688,1760341832378,-300.0,0.00014395,2]
[391100689,1760341832387,-300.0,0.00014395,2]
[391100690,1760341832396,-300.0,0.00014395,2]
[391100691,1760341832407,-300.0,0.00014395,2]
[391100692,1760341832417,-300.0,0.00014395,2]
[391100693,1760341832427,-200.0,0.0001453,2]
[391100695,1760341832436,-646.65982734,0.0001453,2]
[391100697,1760341832445,-151.0,0.0001453,2]
[391100698,1760341832454,-151.0,0.0001453,2]
[391100700,1760341832465,-151.0,0.0001453,2]
[391100703,1760341832477,-500.0,0.0001453,2]
[391100704,1760341832487,-151.0,0.0001453,2]
[391100706,1760341832496,-500.0,0.0001453,2]
[391100708,1760341832507,-151.0,0.0001453,2]
[391100710,1760341832516,-500.0,0.0001453,2]
[391100713,1760341832526,-151.0,0.0001453,2]
[391100714,1760341832536,-500.0,0.0001453,2]
[391100716,1760341832546,-151.0,0.0001453,2]
[391100718,1760341832555,-322.6107,0.0001453,2]
[391100720,1760341832565,-500.0,0.0001453,2]
[391100723,1760341832575,-151.0,0.0001453,2]
[391100725,1760341832585,-500.0,0.0001453,2]
[391100726,1760341832594,-151.0,0.0001453,2]
[391100728,1760341832603,-500.0,0.0001453,2]
[391100764,1760341832938,-151.0,0.0001453,2]
[391100766,1760341832948,-151.0,0.0001453,2]
[391100768,1760341832957,-200.0,0.0001453,2]
[391100770,1760341832967,-500.0,0.0001453,2]
[391100772,1760341832976,-151.0,0.0001453,2]
[391100774,1760341832985,-500.0,0.0001453,2]
[391100776,1760341832994,-500.0,0.0001453,2]
[391100778,1760341833003,-500.0,0.0001453,2]
[391100780,1760341833012,-500.0,0.0001453,2]
[391100782,1760341833021,-200.0,0.0001453,2]
[391100783,1760341833032,-1000.0,0.00014538,2]
[391100784,1760341833041,-19910.1205,0.00014538,2]
[391100785,1760341833050,-1320.36149043,0.00014582,2]
[391100786,1760341833059,-3303.768,0.00014586,2]
[391100787,1760341833069,-209.901,0.00014586,2]
[391100788,1760341833078,-595.0,0.00014599,2]
[391100789,1760341833087,-400.0,0.000146,5]
[391100790,1760341833096,-595.0,0.00014607,2]
[391100791,1760341833106,-166.66,0.00014665,2]
[391100792,1760341833115,-2984.855,0.00014687,2]
[391100793,1760341833124,-800.0,0.000147,5]
[391100794,1760341833133,-595.0,0.00014749,2]
[391100795,1760341833142,-200.0,0.00014761,2]
[391100796,1760341833152,-247.85575287,0.00014779,2]
[391100797,1760341833161,-323.20519007,0.00014779,2]
[391100798,1760341833170,-151.08764944,0.00014779,2]
[391100799,1760341833179,-500.0,0.00014779,2]
[391100800,1760341833187,-500.0,0.00014779,2]
[391100801,1760341833197,-413.13061566,0.00014779,2]
[391100802,1760341833205,-157.69349705,0.00014779,2]
[391100803,1760341833215,-500.0,0.00014779,2]
[391100804,1760341833224,-500.0,0.00014779,2]
[391100805,1760341833233,-28575.41491736,0.0001478,2]
[391100806,1760341833246,-2405.59787009,0.0001478,2]
[391100807,1760341833255,-5000.0,0.0001478,2]
[391100808,1760341833264,-201.52185273,0.0001478,2]
[391100809,1760341833274,-13760.53115694,0.0001478,2]
[391100810,1760341833297,-5852.41056362,0.0001478,2]
[391100811,1760341833307,-463.05764496,0.0001478,2]
[391100816,1760341838107,-536.94235504,0.0001478,2]
[391100817,1760341838116,-159.78788652,0.0001478,2]
[391100818,1760341838125,-157.69349697,0.00014787,2]
[391100819,1760341838135,-145.76404684,0.00014794,2]
[391100820,1760341838146,-11.92945013,0.00014794,2]
[391100821,1760341838155,-595.0,0.000148,2]
[391100822,1760341838165,-162.19,0.000148,2]
[391100823,1760341838175,-96.57054987,0.000148,5]
[391100824,1760341838186,-1203.42945013,0.000148,5]
[391100825,1760341838195,-157.69349697,0.00014802,2]
[391100826,1760341838205,-931.17077379,0.00014808,2]
[391100827,1760341838216,-338.59722621,0.00014808,2]
[391100828,1760341838225,-13.28395914,0.00014808,2]
[391100829,1760341838270,-1406.39804086,0.00014808,2]
[391100830,1760341838279,-150.0,0.00014808,2]
[391100831,1760341838288,-901.0,0.00014808,2]
[391100832,1760341838297,-2545.0,0.00014808,2]
[391100833,1760341838306,-1182.0,0.00014808,2]
[391100834,1760341838316,-157.69349697,0.0001481,2]
[391100835,1760341838325,-173.0,0.00014813,2]
[391100836,1760341838334,-157.69349697,0.00014817,2]
[391100837,1760341838344,-157.69349697,0.00014825,2]
[391100838,1760341838354,-595.0,0.00014827,2]
[391100839,1760341838363,-157.69349697,0.00014832,2]
[391100841,1760341838372,-157.69349697,0.0001484,2]
[391100843,1760341838381,-173.0,0.00014843,2]
[391100845,1760341838390,-157.69349697,0.00014848,2]
[391100847,1760341838399,-157.69349697,0.00014855,2]
[391100849,1760341838408,-500.0,0.0001486,2]
[391100851,1760341838417,-150.0,0.0001486,2]
[391100853,1760341838426,-1329.0,0.0001486,2]
[391100855,1760341838435,-150.0,0.0001486,2]
[391100857,1760341838445,-500.0,0.0001486,2]
[391100858,1760341838455,-150.0,0.0001486,2]
[391100859,1760341838467,-150.0,0.0001486,2]
[391100860,1760341838476,-500.0,0.0001486,2]
[391100861,1760341838485,-150.0,0.0001486,2]
[391100862,1760341838495,-552.12,0.00014871,2]
[391100863,1760341838508,-412.50300685,0.00014873,2]
[391100864,1760341838519,-88.20897253,0.00014873,2]
[391100865,1760341838529,-165.22960471,0.00014873,2]
[391100866,1760341838539,-159.869501,0.00014873,2]
[391100867,1760341838548,-500.0,0.00014873,2]
[391100868,1760341838558,-500.4497928,0.00014873,2]
[391100869,1760341838567,-500.0,0.00014873,2]
[391100870,1760341838577,-500.56534583,0.00014873,2]
[391100871,1760341838586,-500.38760363,0.00014873,2]
[391100872,1760341838598,-396.11030026,0.00014873,2]
[391100873,1760341838611,-103.88969974,0.00014873,2]
[391100874,1760341838620,-432.49752359,0.00014873,2]
[391100875,1760341838631,-67.50247641,0.00014873,2]
[391100876,1760341838640,-500.0,0.00014873,2]
[391100877,1760341838650,-255.48234323,0.00014873,2]
[391100878,1760341838659,-174.16820138,0.00014873,2]
[391100879,1760341838668,-479.26697898,0.00014873,2]
[391100881,1760341838679,-28.8044778,0.00014873,2]
[391100882,1760341838688,-501.17212125,0.00014873,2]
[391100883,1760341838697,-460.83919775,0.00014873,2]
[391100891,1760341840092,-157.69349697,0.00014863,2]
[391100892,1760341840102,-39.16080225,0.00014873,2]
[391100893,1760341840111,-500.0,0.00014873,2]
[391100894,1760341840120,-429.62383105,0.00014873,2]
[391100895,1760341840131,-70.37616895,0.00014873,2]
[391100896,1760341840141,-500.0,0.00014873,2]
[391100897,1760341840151,-8.27383105,0.00014876,2]
[391100899,1760341840891,-142.72616895,0.00014876,2]
[391100900,1760341840900,-3192.13383105,0.00014877,2]
[391100917,1760341843400,-794.72139725,0.00014877,2]
[391100918,1760341843411,-1468.095,0.00014877,2]
[391100919,1760341843437,-1078.1908699,0.00014877,2]
[391100920,1760341843447,-410.9099588,0.00014877,2]
[391100921,1760341843475,-386.45735159,0.00014877,2]
[391100926,1760341846147,-157.69349697,0.00014871,2]
[391100927,1760341846159,-2765.94682891,0.00014877,2]
[391100928,1760341846168,-151.0,0.00014877,2]
[391100929,1760341846178,-151.0,0.00014877,2]
[391100930,1760341846187,-1000.0,0.00014879,15]
[391100931,1760341846197,-1000.0,0.00014879,15]
[391100932,1760341846206,-1000.0,0.00014879,15]
[391100933,1760341846216,-1000.0,0.00014879,15]
[391100934,1760341846225,-525.60047624,0.00014879,15]
[391100935,1760341846300,-521.79488009,0.00014879,15]
[391100936,1760341846311,-500.0,0.00014879,2]
[391100937,1760341846320,-494.67471991,0.00014879,5]
[391100938,1760341846354,-657.92929977,0.00014879,5]
[391101293,1760342416986,-500.0,0.00013086,2]
[391101294,1760342417008,-23.43738118,0.00013086,2]
[391101295,1760342420923,-165.0,0.00013086,2]
[391101296,1760342551339,-146.15930322,0.00013086,2]
[391101297,1760342551362,-27.84069678,0.00013086,2]
[391101298,1760342553564,-164.0,0.00013086,2]
[391101299,1760342558044,-174.57519898,0.00013086,2]
[391101300,1760342597485,-206.88771,0.00013,2]
[391101302,1760343032236,-390.37796656,0.00013,2]
[391101303,1760343032303,-1775.37359999,0.00013,2]
[391101304,1760343032356,-1147.3014674,0.00013,2]
[391101305,1760343032366,-465.61829656,0.00013043,2]
[391101306,1760343032377,-133.58410424,0.00013086,2]
[391101307,1760343032388,-206.88771,0.00013613,2]
[391101308,1760343032398,-1500.0,0.00013751,2]
[391101309,1760343032410,-266.0,0.00013831,2]
[391101310,1760343032422,-1200.0,0.00013831,2]